bitfinex/quotes_BTCUSD_20250910
["timestamp","ask_amount","ask_price","bid_price","bid_amount"]
[1757528737046,0.01646595,113490.0,113480.0,0.20822239]
[1757528737269,0.34285293,113490.0,113480.0,0.20601936]
[1757528737499,0.16662595,113490.0,113480.0,0.20601936]
[1757528738150,0.36216796,113490.0,113480.0,0.20601936]
[1757528739164,0.16662595,113490.0,113480.0,0.20601936]
[1757528739607,0.53839494,113490.0,113480.0,0.20601936]
[1757528739811,0.53839494,113490.0,113480.0,0.18245936]
[1757528740998,0.53839494,113490.0,113480.0,0.00621686]
[1757528741241,0.34285293,113490.0,113480.0,0.00621686]
[1757528741445,0.54349494,113490.0,113480.0,0.00621686]
[1757528741671,0.63101846,113490.0,113480.0,0.00544686]
[1757528743555,0.43547645,113490.0,113480.0,0.00621686]
[1757528743791,0.63101846,113490.0,113480.0,0.00621686]
[1757528745326,0.63103582,113490.0,113480.0,0.00621686]
[1757528745532,0.63922915,113490.0,113480.0,0.00544686]
[1757528746133,0.83477116,113490.0,113480.0,0.00544686]
[1757528746319,0.86601945,113490.0,113480.0,0.00544686]
[1757528746523,0.83477116,113490.0,113480.0,0.00544686]
[1757528746756,0.44368714,113490.0,113480.0,0.00544686]
[1757528746966,0.63922915,113490.0,113480.0,0.00544686]
[1757528747180,0.83477116,113490.0,113480.0,0.00244686]
[1757528747370,0.83477116,113490.0,113480.0,0.00544686]
[1757528747603,0.63922915,113490.0,113480.0,0.00544686]
[1757528748055,0.63922915,113490.0,113480.0,0.00244686]
[1757528748395,0.83477116,113490.0,113480.0,0.00244686]
[1757528748785,0.83178372,113490.0,113480.0,0.00244686]
[1757528749006,1.42455842,113490.0,113480.0,0.00244686]
[1757528749227,0.02147918,113490.0,113480.0,0.20601936]
[1757528749471,0.02147918,113490.0,113480.0,0.69521622]
[1757528749472,0.0001,113490.0,113480.0,0.69521622]
[1757528749699,0.0001,113490.0,113480.0,1.12205702]
[1757528749914,0.0001,113490.0,113480.0,1.12805702]
[1757528750134,0.0001,113490.0,113480.0,0.87558054]
[1757528750375,0.0001,113490.0,113480.0,0.87258054]
[1757528750611,0.19554201,113510.0,113500.0,0.17620518]
[1757528750850,0.19554201,113510.0,113500.0,0.19262721]
[1757528751089,0.17404396,113520.0,113510.0,0.17619592]
[1757528751319,0.26382757,113520.0,113510.0,0.19338795]
[1757528751546,0.26166748,113520.0,113510.0,0.17696592]
[1757528751779,0.17450396,113520.0,113510.0,0.20272836]
[1757528751989,0.17450396,113520.0,113510.0,0.23841927]
[1757528751990,0.02314396,113520.0,113510.0,0.23841927]
[1757528752675,0.02414396,113520.0,113510.0,0.23841927]
[1757528752885,0.02314396,113520.0,113510.0,0.23841927]
[1757528753309,0.02314396,113520.0,113510.0,0.24093927]
[1757528753753,0.02314396,113520.0,113510.0,0.20004592]
[1757528753960,0.02314396,113520.0,113510.0,0.20552592]
[1757528754377,0.02314396,113520.0,113510.0,0.20952592]
[1757528754995,0.02314396,113520.0,113510.0,0.23596413]
[1757528755454,0.02314396,113520.0,113510.0,0.43596413]
[1757528755655,0.02314396,113520.0,113510.0,0.52349531]
[1757528756748,0.02314396,113520.0,113510.0,0.58928471]
[1757528759524,0.02314396,113520.0,113510.0,0.82828823]
[1757528759722,0.0001,113520.0,113510.0,0.82828823]
[1757528759924,0.0001,113520.0,113510.0,0.67680823]
[1757528760340,0.0001,113520.0,113510.0,1.22820823]
[1757528765349,1e-08,113520.0,113510.0,1.91820823]
[1757528765604,1e-08,113520.0,113510.0,1.96820823]
[1757528765849,1e-08,113520.0,113510.0,2.01820823]
[1757528766271,1e-08,113520.0,113510.0,2.01420823]
[1757528766482,0.0001,113550.0,113540.0,0.17614937]
[1757528766684,0.01649496,113550.0,113540.0,0.4025394]
[1757528766917,0.01649496,113550.0,113540.0,0.4033094]
[1757528767121,0.01649496,113550.0,113540.0,0.2762594]
[1757528767325,0.21203697,113550.0,113540.0,0.4303388]
[1757528767747,0.21399697,113550.0,113540.0,0.43038566]
[1757528767950,0.21509697,113550.0,113540.0,0.43038566]
[1757528768571,0.21705697,113550.0,113540.0,0.27862566]
[1757528768781,0.21203697,113550.0,113540.0,0.27862566]
[1757528768990,0.21503697,113550.0,113540.0,0.27862566]
[1757528769171,0.21503697,113550.0,113540.0,0.25219626]
[1757528769389,0.39619083,113550.0,113540.0,0.25219626]
[1757528769585,0.01949496,113550.0,113540.0,0.25219626]
[1757528769801,0.48280774,113550.0,113540.0,4.686e-05]
[1757528770007,0.67924966,113550.0,113540.0,4.686e-05]
[1757528770663,0.48370765,113550.0,113540.0,4.686e-05]
[1757528771255,0.34790212,113550.0,113540.0,0.00081686]
[1757528771465,0.54344413,113550.0,113540.0,0.00081686]
[1757528771671,0.39116413,113550.0,113540.0,0.00081686]
[1757528772092,1.06697624,113550.0,113540.0,4.686e-05]
[1757528772517,0.9366089,113550.0,113540.0,4.686e-05]
[1757528772724,0.80625056,113550.0,113540.0,4.686e-05]
[1757528773160,0.9366089,113550.0,113540.0,4.686e-05]
[1757528773584,1.0888889,113550.0,113540.0,4.686e-05]
[1757528773784,0.67589222,113550.0,113540.0,4.686e-05]
[1757528773994,1.0888889,113550.0,113540.0,4.686e-05]
[1757528774198,1.08889221,113550.0,113540.0,4.686e-05]
[1757528775496,1.095041,113550.0,113540.0,4.686e-05]
[1757528775713,1.195041,113550.0,113540.0,4.686e-05]
[1757528776149,1.192041,113550.0,113540.0,4.686e-05]
[1757528776592,1.32639934,113550.0,113540.0,4.686e-05]
[1757528776835,0.17619592,113510.0,113500.0,0.07061254]
[1757528777114,0.47754592,113510.0,113500.0,0.07061254]
[1757528777336,0.47549788,113510.0,113500.0,0.24759399]
[1757528777572,0.32305788,113510.0,113500.0,0.24759399]
[1757528777798,0.47545788,113510.0,113500.0,0.17708145]
[1757528778029,0.32305788,113510.0,113500.0,0.21887451]
[1757528778257,0.16900398,113510.0,113500.0,0.24298451]
[1757528778519,0.01664398,113510.0,113500.0,0.24298451]
[1757528779014,0.01664398,113510.0,113500.0,0.24798451]
[1757528779243,0.32319824,113510.0,113500.0,0.00787]
[1757528779479,0.1928399,113510.0,113500.0,0.18408145]
[1757528779945,0.1928399,113510.0,113500.0,0.18456145]
[1757528780399,0.1928399,113510.0,113470.0,0.0004]
[1757528780400,0.54136908,113480.0,113470.0,0.0004]
[1757528780653,0.54136908,113480.0,113470.0,0.00345]
[1757528780654,0.01640362,113480.0,113470.0,0.00345]
[1757528780887,0.19264612,113480.0,113470.0,0.03129322]
[1757528781516,0.01640362,113480.0,113470.0,0.36503126]
[1757528781729,0.19274612,113480.0,113470.0,0.36282804]
[1757528781947,0.19274612,113480.0,113470.0,0.03409]
[1757528782215,0.19274612,113480.0,113470.0,0.2235162]
[1757528782433,0.19274612,113480.0,113470.0,0.2245162]
[1757528782674,0.19474612,113480.0,113470.0,0.2245162]
[1757528782865,0.19474612,113480.0,113470.0,0.0720362]
[1757528783123,0.19474612,113480.0,113470.0,0.2245162]
[1757528784317,0.19474612,113480.0,113470.0,0.18257]
[1757528784528,0.19474612,113480.0,113470.0,0.35882804]
[1757528787397,0.01850362,113480.0,113470.0,0.35882804]
[1757528788120,0.19474612,113480.0,113470.0,0.35882804]
[1757528788699,0.01850362,113480.0,113470.0,0.35882804]
[1757528789071,0.01848555,113480.0,113470.0,0.40650944]
[1757528790400,0.01848555,113480.0,113470.0,0.25402944]
[1757528790584,0.01848555,113480.0,113470.0,0.40674944]
[1757528790790,0.01848555,113480.0,113470.0,0.40666944]
[1757528791369,0.01848555,113480.0,113470.0,0.35898804]
[1757528791830,0.01848555,113480.0,113470.0,0.20634804]
[1757528791831,0.19472805,113480.0,113470.0,0.20634804]
[1757528792081,0.01848555,113480.0,113470.0,0.35898804]
[1757528792552,0.19472805,113480.0,113470.0,0.15925]
[1757528792806,0.19472805,113480.0,113470.0,0.00657]
[1757528793068,0.19472805,113480.0,113470.0,0.33554804]
[1757528793324,0.01848555,113480.0,113470.0,0.43102959]
[1757528793571,0.19472805,113480.0,113470.0,0.43102959]
[1757528794055,0.43265781,113480.0,113470.0,0.00341]
[1757528794271,0.59061781,113480.0,113470.0,0.0014]
[1757528794488,0.67814133,113480.0,113470.0,0.0014]
[1757528794948,1.04326791,113480.0,113470.0,0.0014]
[1757528795174,0.82952815,113480.0,113470.0,0.0014]
[1757528795406,1.06745791,113480.0,113470.0,0.0014]
[1757528796837,0.82952815,113480.0,113470.0,0.0014]
[1757528797055,1.06745791,113480.0,113470.0,0.0014]
[1757528797277,0.82952815,113480.0,113470.0,0.0014]
[1757528797496,1.06745791,113480.0,113470.0,0.0014]
[1757528798378,1.07359823,113480.0,113470.0,0.0014]
[1757528800170,0.83566847,113480.0,113470.0,0.0014]
[1757528800586,1.07359823,113480.0,113470.0,0.0014]
[1757528800784,0.83566847,113480.0,113470.0,0.0014]
[1757528800985,1.07359823,113480.0,113470.0,0.0014]
[1757528802640,0.83566847,113480.0,113470.0,0.0014]
[1757528802851,1.07359823,113480.0,113470.0,0.0014]
[1757528803070,0.92091823,113480.0,113470.0,0.0014]
[1757528803279,1.07499823,113480.0,113470.0,0.0014]
[1757528804409,1.22867806,113480.0,113470.0,0.0014]
[1757528804624,1.09814153,113480.0,113470.0,0.0014]
[1757528805266,1.09614153,113480.0,113470.0,0.0014]
[1757528805487,0.83506847,113480.0,113470.0,0.0004]
[1757528805729,1.09714153,113480.0,113470.0,0.0004]
[1757528805944,1.09614153,113480.0,113470.0,0.0004]
[1757528806151,1.09814153,113480.0,113470.0,0.0004]
[1757528806371,1.22967806,113480.0,113470.0,0.0004]
[1757528807231,0.83806847,113480.0,113470.0,0.0004]
[1757528807695,1.22967806,113480.0,113470.0,0.0004]
[1757528808560,1.09914153,113480.0,113470.0,0.0004]
[1757528808771,1.22967806,113480.0,113470.0,0.0004]
[1757528809115,1.22975806,113480.0,113470.0,0.0004]
[1757528809371,0.68398847,113480.0,113470.0,0.0004]
[1757528809586,1.09922153,113480.0,113470.0,0.0004]
[1757528810331,0.83814847,113480.0,113470.0,0.0004]
[1757528810545,1.09922153,113480.0,113470.0,0.0004]
[1757528810947,0.94506153,113480.0,113470.0,0.0004]
[1757528811224,1.09918153,113480.0,113470.0,0.0004]
[1757528811430,0.94506153,113480.0,113470.0,0.0004]
[1757528811666,1.09922153,113480.0,113470.0,0.0004]
[1757528811865,1.22975806,113480.0,113470.0,0.0004]
[1757528811988,1.24865849,113480.0,113470.0,0.0004]
[1757528812404,1.22975806,113480.0,113470.0,0.0004]
[1757528812612,1.24865864,113480.0,113470.0,0.0004]
[1757528815388,0.54140015,113460.0,113450.0,0.0005]
[1757528815601,1.1340826,113460.0,113450.0,0.0005]
[1757528815818,1.1622226,113460.0,113450.0,0.0005]
[1757528816562,1.16236286,113460.0,113450.0,0.0005]
[1757528818390,0.17630465,113440.0,113430.0,0.28756556]
[1757528818610,0.61586367,113440.0,113430.0,0.28756556]
[1757528818824,0.46498358,113440.0,113430.0,0.28964556]
[1757528819115,0.61376358,113440.0,113430.0,0.28964556]
[1757528819361,0.61372358,113440.0,113430.0,0.28964556]
[1757528819580,0.48418705,113440.0,113430.0,0.29364556]
[1757528819793,0.48418705,113440.0,113430.0,0.29973556]
[1757528820003,0.48318705,113440.0,113430.0,0.29573556]
[1757528820187,0.48418705,113440.0,113430.0,0.29573556]
[1757528820428,0.33046705,113440.0,113430.0,0.29773556]
[1757528820632,0.48418705,113440.0,113430.0,0.29773556]
[1757528821300,0.19993052,113440.0,113430.0,0.31733874]
[1757528821526,0.48414705,113440.0,113430.0,0.29773556]
[1757528821731,0.35357052,113440.0,113430.0,0.29773556]
[1757528821873,0.33046705,113440.0,113430.0,0.29773556]
[1757528822213,0.48410705,113440.0,113430.0,0.29773556]
[1757528822641,0.35357052,113440.0,113430.0,0.29773556]
[1757528822892,0.48410705,113440.0,113430.0,0.29773556]
[1757528823091,0.35357052,113440.0,113430.0,0.29773556]
[1757528823305,0.48410705,113440.0,113430.0,0.29773556]
[1757528824853,0.35357052,113440.0,113430.0,0.29464556]
[1757528825072,0.48410705,113440.0,113430.0,0.29464556]
[1757528825289,0.61464358,113440.0,113430.0,0.29464556]
[1757528825719,0.61972358,113440.0,113430.0,0.29464556]
[1757528826380,0.35865052,113440.0,113430.0,0.29464556]
[1757528826823,0.61669358,113440.0,113430.0,0.29464556]
[1757528827680,0.61464358,113440.0,113430.0,0.29464556]
[1757528827890,0.20002565,113440.0,113430.0,0.29773556]
[1757528828104,0.48404218,113440.0,113430.0,0.29773556]
[1757528828514,0.48392218,113440.0,113430.0,0.29773556]
[1757528828749,1.1177113,113440.0,113430.0,0.29256556]
[1757528828961,1.08810538,113440.0,113430.0,0.29464556]
[1757528829201,0.91579881,113440.0,113430.0,0.29464556]
[1757528829400,1.06815881,113440.0,113430.0,0.28964556]
[1757528829609,1.06610881,113440.0,113430.0,0.28964556]
[1757528829817,1.06915881,113440.0,113430.0,0.29264556]
[1757528830029,1.07118881,113440.0,113430.0,0.29064556]
[1757528830234,1.07118881,113440.0,113430.0,0.29264556]
[1757528830451,1.07118881,113440.0,113430.0,0.29164556]
[1757528830664,0.88762223,113440.0,113430.0,0.29164556]
[1757528830817,0.77990917,113440.0,113430.0,0.29473556]
[1757528831020,0.9104457,113440.0,113430.0,0.29473556]
[1757528831233,1.04303223,113440.0,113430.0,0.29164556]
[1757528831442,1.04606223,113440.0,113430.0,0.28956556]
[1757528831838,1.04606223,113440.0,113430.0,0.29264556]
[1757528832680,1.04098223,113440.0,113430.0,0.29264556]
[1757528832889,1.22468534,113440.0,113430.0,0.29056556]
[1757528833101,1.11308613,113440.0,113430.0,0.29056556]
[1757528833301,1.09414881,113440.0,113430.0,0.29056556]
[1757528834342,1.42088333,113440.0,113430.0,0.29056556]
[1757528835408,1.42085853,113440.0,113430.0,0.29056556]
[1757528838499,1.20172267,113440.0,113430.0,0.29264556]
[1757528838696,1.39765853,113440.0,113430.0,0.29264556]
[1757528839118,1.39765853,113440.0,113430.0,0.29056556]
[1757528840560,1.42061853,113440.0,113430.0,0.29056556]
[1757528842261,1.42061853,113440.0,113430.0,0.28956556]
[1757528842469,1.42061853,113440.0,113430.0,0.29056556]
[1757528842693,1.42061853,113440.0,113430.0,0.28856556]
[1757528842889,1.42061853,113440.0,113430.0,0.28956556]
[1757528843107,1.42061853,113440.0,113430.0,0.28856556]
[1757528844828,1.43955686,113440.0,113430.0,0.28856556]
[1757528846107,1.43931686,113440.0,113430.0,0.28856556]
[1757528846318,1.26749853,113440.0,113430.0,0.28856556]
[1757528846529,1.42037853,113440.0,113430.0,0.28856556]
[1757528848297,0.67969095,113440.0,113430.0,0.28856556]
[1757528848477,1.42037853,113440.0,113430.0,0.28856556]
[1757528851171,0.83257499,113440.0,113430.0,0.28856556]
[1757528851381,1.42034257,113440.0,113430.0,0.28856556]
[1757528851798,1.42034257,113440.0,113430.0,0.28756556]
[1757528851999,1.42234257,113440.0,113430.0,0.28756556]
[1757528852408,0.83453499,113440.0,113430.0,0.28756556]
[1757528852615,1.42234257,113440.0,113430.0,0.28756556]
[1757528853232,1.44129211,113440.0,113430.0,0.28756556]
[1757528853445,1.42234257,113440.0,113430.0,0.28756556]
[1757528854270,1.44129563,113440.0,113430.0,0.28756556]
[1757528854480,1.42234257,113440.0,113430.0,0.28756556]
[1757528855314,0.68169499,113440.0,113430.0,0.28756556]
[1757528855523,1.42246257,113440.0,113430.0,0.28756556]
[1757528857215,1.44142836,113440.0,113430.0,0.28756556]
[1757528857438,1.42246257,113440.0,113430.0,0.28756556]
[1757528857860,1.26950257,113440.0,113430.0,0.28756556]
[1757528858069,1.42254257,113440.0,113430.0,0.28756556]
[1757528858280,1.44151462,113440.0,113430.0,0.28756556]
[1757528859338,1.28847462,113440.0,113430.0,0.28756556]
[1757528859549,1.44151462,113440.0,113430.0,0.28756556]
[1757528861040,1.50919462,113440.0,113430.0,0.28756556]
[1757528861253,1.50979462,113440.0,113430.0,0.28756556]
[1757528863826,1.35615462,113440.0,113430.0,0.28756556]
[1757528863970,1.54252291,113440.0,113430.0,0.28756556]
[1757528864172,1.51127462,113440.0,113430.0,0.28756556]
[1757528864745,1.51128715,113440.0,113430.0,0.28756556]
[1757528864951,1.71706193,113430.0,113420.0,1e-08]
[1757528865161,1.41417093,113430.0,113420.0,1e-08]
[1757528865574,1.44326093,113430.0,113420.0,1e-08]
[1757528865770,1.44336093,113430.0,113420.0,1e-08]
[1757528865965,1.44336093,113430.0,113420.0,0.00100001]
[1757528866399,1.44336093,113430.0,113420.0,1e-08]
[1757528866604,1.46983159,113430.0,113420.0,1e-08]
[1757528866830,1.54034413,113430.0,113390.0,0.29793388]
[1757528867046,1.21682452,113400.0,113390.0,0.29793388]
[1757528867251,1.29623143,113400.0,113390.0,0.29793388]
[1757528867497,1.49216729,113400.0,113390.0,0.29793388]
[1757528867917,1.49226729,113400.0,113390.0,0.29793388]
[1757528868134,1.5010911,113400.0,113390.0,0.30193388]
[1757528868418,1.34531123,113400.0,113390.0,0.29893388]
[1757528868636,1.50123123,113400.0,113390.0,0.29993388]
[1757528868869,1.50223123,113400.0,113390.0,0.29993388]
[1757528869795,1.5022095,113400.0,113390.0,0.29993388]
[1757528870232,0.91440192,113400.0,113390.0,0.29993388]
[1757528870481,1.5022095,113400.0,113390.0,0.29993388]
[1757528870679,1.3462895,113400.0,113390.0,0.29993388]
[1757528870897,1.12029447,113400.0,113390.0,0.30209388]
[1757528871117,1.0986726,113400.0,113390.0,0.30209388]
[1757528871339,0.86308088,113400.0,113390.0,0.30209388]
[1757528871554,1.07354602,113400.0,113390.0,0.30209388]
[1757528871759,1.06472221,113400.0,113390.0,0.30209388]
[1757528871969,1.24640879,113400.0,113390.0,0.22530388]
[1757528872608,1.08984879,113400.0,113390.0,0.22530388]
[1757528872790,1.24640879,113400.0,113390.0,0.22530388]
[1757528872998,1.24640879,113400.0,113390.0,0.22209388]
[1757528873210,1.24636879,113400.0,113390.0,0.22209388]
[1757528873645,1.24632879,113400.0,113390.0,0.22530388]
[1757528875008,1.24632879,113400.0,113390.0,0.22209388]
[1757528875290,0.85445707,113400.0,113390.0,0.22209388]
[1757528875501,1.24632879,113400.0,113390.0,0.22509388]
[1757528875715,0.85445707,113400.0,113390.0,0.22509388]
[1757528875936,0.40168697,113400.0,113390.0,0.22509388]
[1757528876191,0.44126283,113400.0,113390.0,0.42457627]
[1757528876398,0.44126283,113400.0,113390.0,0.46485045]
[1757528876399,0.59762283,113400.0,113390.0,0.46485045]
[1757528876989,0.40168697,113400.0,113390.0,0.42457627]
[1757528877201,0.59762283,113400.0,113390.0,0.42457627]
[1757528877814,0.44126283,113400.0,113390.0,0.42457627]
[1757528878018,0.40168697,113400.0,113390.0,0.42457627]
[1757528878223,0.59762283,113400.0,113390.0,0.42457627]
[1757528878427,0.40168697,113400.0,113390.0,0.42457627]
[1757528878637,0.59762283,113400.0,113390.0,0.42457627]
[1757528879049,0.40168697,113400.0,113390.0,0.42457627]
[1757528879250,0.79355869,113400.0,113390.0,0.42457627]
[1757528879466,0.79355869,113400.0,113390.0,0.22509388]
[1757528879676,0.79339869,113400.0,113390.0,0.22509388]
[1757528880117,0.40152697,113400.0,113390.0,0.22209388]
[1757528880326,0.79867869,113400.0,113390.0,0.22209388]
[1757528880986,0.79339869,113400.0,113390.0,0.22209388]
[1757528881224,0.88620221,113400.0,113390.0,0.21993388]
[1757528881461,0.88297221,113400.0,113390.0,0.22209388]
[1757528881682,0.88620221,113400.0,113390.0,0.21993388]
[1757528882159,1.22620221,113400.0,113390.0,0.21993388]
[1757528882379,1.22620221,113400.0,113390.0,0.22209388]
[1757528882609,1.22281221,113400.0,113390.0,0.22209388]
[1757528882824,1.22604221,113400.0,113390.0,0.21993388]
[1757528883233,1.22604221,113400.0,113390.0,0.22209388]
[1757528883870,0.93722283,113400.0,113390.0,0.22509388]
[1757528884081,1.13311869,113400.0,113390.0,0.22509388]
[1757528884294,1.13307869,113400.0,113390.0,0.22509388]
[1757528884654,0.74120697,113400.0,113390.0,0.40147627]
[1757528884881,1.13307869,113400.0,113390.0,0.22509388]
[1757528885468,0.97719869,113400.0,113390.0,0.40147627]
[1757528885708,1.13307869,113400.0,113390.0,0.40147627]
[1757528885929,0.79307869,113400.0,113390.0,0.22509388]
[1757528886571,0.40120697,113400.0,113390.0,0.40147627]
[1757528886776,0.79307869,113400.0,113390.0,0.40147627]
[1757528886975,0.79295869,113400.0,113390.0,0.40147627]
[1757528888233,0.40108697,113400.0,113390.0,0.40147627]
[1757528888444,0.79295869,113400.0,113390.0,0.40147627]
[1757528888652,0.40108697,113400.0,113390.0,0.40147627]
[1757528889266,0.79279869,113400.0,113390.0,0.40147627]
[1757528889469,0.40092697,113400.0,113390.0,0.40147627]
[1757528889683,0.79279869,113400.0,113390.0,0.22509388]
[1757528890102,0.79279869,113400.0,113390.0,0.22209388]
[1757528891612,0.24532697,113400.0,113390.0,0.22209388]
[1757528891836,0.79271869,113400.0,113390.0,0.22209388]
[1757528892611,0.90741879,113400.0,113390.0,0.22209388]
[1757528892825,0.90536879,113400.0,113390.0,0.22209388]
[1757528893239,0.51349707,113400.0,113390.0,0.22209388]
[1757528893539,0.90536879,113400.0,113390.0,0.22209388]
[1757528893755,0.90741879,113400.0,113390.0,0.22209388]
[1757528894152,0.90536879,113400.0,113390.0,0.22209388]
[1757528894376,0.77488617,113400.0,113390.0,0.22209388]
[1757528895493,0.78016617,113400.0,113390.0,0.21993388]
[1757528895721,0.78016617,113400.0,113390.0,0.22209388]
[1757528896634,0.77693617,113400.0,113390.0,0.22209388]
[1757528896852,0.77488617,113400.0,113390.0,0.22209388]
[1757528897873,0.78016617,113400.0,113390.0,0.22209388]
[1757528898100,0.78016617,113400.0,113390.0,0.21993388]
[1757528898782,0.77440617,113400.0,113390.0,0.22209388]
[1757528899197,0.48789049,113400.0,113390.0,0.22209388]
[1757528899540,0.61858504,113400.0,113390.0,0.22509388]
[1757528899679,0.61846504,113400.0,113390.0,0.22209388]
[1757528900098,0.33285049,113400.0,113390.0,0.22209388]
[1757528900376,0.61838504,113400.0,113390.0,0.22509388]
[1757528901326,0.33236697,113400.0,113390.0,0.40147627]
[1757528901553,0.46306152,113400.0,113390.0,0.40147627]
[1757528902850,0.46306152,113400.0,113390.0,0.39847627]
[1757528903891,0.17760697,113400.0,113390.0,0.40163627]
[1757528904124,0.15596013,113400.0,113390.0,0.48450869]
[1757528904325,0.15596013,113400.0,113390.0,0.42659627]
[1757528905434,0.00124013,113400.0,113390.0,0.42659627]
[1757528905556,0.15592013,113400.0,113390.0,0.42659627]
[1757528906658,0.00124013,113400.0,113390.0,0.42659627]
[1757528906857,0.15588013,113400.0,113390.0,0.42659627]
[1757528907268,0.15580013,113400.0,113390.0,0.42659627]
[1757528909555,0.00124013,113400.0,113390.0,0.42659627]
[1757528909788,0.15568013,113400.0,113390.0,0.42659627]
[1757528910026,0.00124013,113400.0,113390.0,0.58099627]
[1757528910238,0.00124013,113400.0,113390.0,1.01903888]
[1757528910450,0.00124013,113400.0,113390.0,1.35903888]
[1757528910659,0.00124013,113400.0,113390.0,1.78550017]
[1757528910885,0.00124013,113400.0,113390.0,1.72251226]
[1757528911093,0.00024013,113400.0,113390.0,1.72051226]
[1757528911328,0.00024013,113400.0,113390.0,1.72251226]
[1757528911946,0.00024013,113400.0,113390.0,1.79949019]
[1757528912176,0.00024013,113400.0,113390.0,1.86407291]
[1757528912386,0.00124013,113400.0,113390.0,1.63569498]
[1757528912592,0.00024013,113400.0,113390.0,1.78801498]
[1757528912734,0.00024013,113400.0,113390.0,1.79201498]
[1757528912944,0.00124013,113400.0,113390.0,1.79201498]
[1757528913371,0.00124013,113400.0,113390.0,1.85529663]
[1757528913983,0.00124013,113400.0,113390.0,1.90529663]
[1757528916301,0.00124013,113400.0,113390.0,1.70097663]
[1757528916503,0.00124013,113400.0,113390.0,1.85517663]
[1757528916704,0.00124013,113400.0,113390.0,1.70097663]
[1757528917167,0.00124013,113400.0,113390.0,1.85517663]
[1757528917372,0.00124013,113400.0,113390.0,1.65517663]
[1757528917551,0.00124013,113400.0,113390.0,1.85517663]
[1757528917902,0.00124013,113400.0,113390.0,1.70097663]
[1757528918106,0.00124013,113400.0,113390.0,1.59185498]
[1757528918570,0.00124013,113400.0,113390.0,1.03769498]
[1757528918777,0.00124013,113400.0,113390.0,1.19185498]
[1757528922625,0.00124013,113400.0,113390.0,1.59185498]
[1757528923887,0.00124013,113400.0,113390.0,1.43769498]
[1757528924132,0.00124013,113400.0,113390.0,1.35017146]
[1757528924343,0.00124013,113400.0,113390.0,1.45255017]
[1757528924751,0.00124013,113400.0,113390.0,1.05255017]
[1757528924956,0.00124013,113400.0,113390.0,1.07751017]
[1757528925800,0.00124013,113400.0,113390.0,0.56043627]
[1757528927058,0.00124013,113400.0,113390.0,0.65077916]
[1757528929024,0.00124013,113400.0,113390.0,0.46885916]
[1757528929262,0.00124013,113400.0,113390.0,0.62549916]
[1757528930896,0.17760697,113400.0,113390.0,0.47201916]
[1757528931523,0.00124013,113400.0,113390.0,0.47201916]
[1757528931736,0.17760697,113400.0,113390.0,0.47201916]
[1757528932769,0.00124013,113400.0,113390.0,0.47201916]
[1757528933442,0.00124013,113400.0,113390.0,0.62525916]
[1757528934322,0.00124013,113400.0,113390.0,0.64816916]
[1757528934747,0.00124013,113400.0,113390.0,0.73570034]
[1757528935435,0.00124013,113400.0,113390.0,0.71279034]
[1757528935697,0.17760697,113400.0,113390.0,0.62525916]
[1757528935887,0.17760697,113400.0,113390.0,0.46885916]
[1757528937055,0.17760697,113400.0,113390.0,0.47197916]
[1757528937973,0.18275697,113400.0,113390.0,0.40347627]
[1757528938216,0.17760697,113400.0,113390.0,0.40347627]
[1757528938710,0.17760697,113400.0,113390.0,0.22709388]
[1757528938928,0.18275697,113400.0,113390.0,0.22709388]
[1757528939083,0.18275697,113400.0,113390.0,0.22493388]
[1757528939836,0.18275697,113400.0,113390.0,0.22701388]
[1757528940043,0.33076697,113400.0,113390.0,0.22701388]
[1757528940258,0.33064697,113400.0,113390.0,0.40339627]
[1757528940681,0.17760697,113400.0,113390.0,0.40339627]
[1757528940880,0.33064697,113400.0,113390.0,0.40339627]
[1757528941419,0.33060697,113400.0,113390.0,0.40651627]
[1757528941627,0.17760697,113400.0,113390.0,0.40651627]
[1757528941882,0.33060697,113400.0,113390.0,0.40651627]
[1757528942328,0.17760697,113400.0,113390.0,0.40651627]
[1757528942529,0.00124013,113400.0,113390.0,0.42942627]
[1757528942741,0.33052697,113400.0,113390.0,0.42942627]
[1757528942946,0.33052697,113400.0,113390.0,0.40651627]
[1757528943401,0.33048697,113400.0,113390.0,0.40651627]
[1757528944241,0.33048697,113400.0,113390.0,0.22701388]
[1757528944453,0.33048697,113400.0,113390.0,0.23013388]
[1757528944697,0.33048697,113400.0,113390.0,0.40651627]
[1757528946270,0.33048697,113400.0,113390.0,0.23013388]
[1757528946966,0.33048697,113400.0,113390.0,0.40651627]
[1757528947198,0.33048697,113400.0,113390.0,0.23013388]
[1757528947426,0.33048697,113400.0,113390.0,0.40339627]
[1757528947655,0.33048697,113400.0,113390.0,0.40651627]
[1757528947878,0.33048697,113400.0,113390.0,0.23013388]
[1757528948352,0.33563697,113400.0,113390.0,0.22701388]
[1757528949044,0.33563697,113400.0,113390.0,0.22493388]
[1757528949256,0.33563697,113400.0,113390.0,0.22701388]
[1757528949674,0.33254697,113400.0,113390.0,0.22701388]
[1757528949897,0.33563697,113400.0,113390.0,0.22701388]
[1757528951529,0.33048697,113400.0,113390.0,0.22701388]
[1757528952627,0.33048697,113400.0,113390.0,0.23013388]
[1757528953298,0.33036697,113400.0,113390.0,0.23013388]
[1757528954145,0.17760697,113400.0,113390.0,0.40651627]
[1757528954373,0.33028697,113400.0,113390.0,0.40651627]
[1757528955604,0.33020697,113400.0,113390.0,0.40651627]
[1757528958192,0.33020697,113400.0,113390.0,0.23013388]
[1757528958421,0.33020697,113400.0,113390.0,0.40651627]
[1757528958661,0.17760697,113400.0,113390.0,0.40651627]
[1757528958864,0.33004697,113400.0,113390.0,0.40651627]
[1757528959217,0.17760697,113400.0,113390.0,0.40651627]
[1757528959424,0.33004697,113400.0,113390.0,0.40651627]
[1757528962337,0.33004697,113400.0,113390.0,0.23013388]
[1757528962543,0.33004697,113400.0,113390.0,0.40651627]
[1757528964609,0.33207697,113400.0,113390.0,0.22701388]
[1757528964863,0.52805168,113400.0,113390.0,0.22701388]
[1757528965628,0.33004697,113400.0,113390.0,0.40339627]
[1757528965828,0.33004697,113400.0,113390.0,0.22701388]
[1757528966046,0.33004697,113400.0,113390.0,0.40339627]
[1757528966294,0.33004697,113400.0,113390.0,0.40653627]
[1757528966731,0.33004697,113400.0,113390.0,0.40339627]
[1757528966959,0.33004697,113400.0,113390.0,0.40653627]
[1757528968090,0.33004697,113400.0,113390.0,0.40339627]
[1757528968314,0.33004697,113400.0,113390.0,0.40653627]
[1757528969861,0.17760697,113400.0,113390.0,0.40653627]
[1757528970092,0.32960697,113400.0,113390.0,0.40653627]
[1757528970528,0.00124013,113400.0,113390.0,0.40653627]
[1757528970748,0.15320013,113400.0,113390.0,0.40653627]
[1757528971669,0.00124013,113400.0,113390.0,0.4977266]
[1757528971891,0.15312013,113400.0,113390.0,0.4977266]
[1757528972343,0.32948697,113400.0,113390.0,0.29353421]
[1757528972560,0.17760697,113400.0,113390.0,0.29353421]
[1757528972836,0.32944697,113400.0,113390.0,0.29353421]
[1757528973283,0.32944697,113400.0,113390.0,0.4730566]
[1757528973730,0.32944697,113400.0,113390.0,0.22701388]
[1757528973946,0.52745168,113400.0,113390.0,0.22701388]